fUSD/lending_fUSD_20251127
["ID","MTS","AMOUNT","RATE_DAILY","PERIOD"]
[394979550,1764250231586,-511.86081427,0.0001487,2]
[394979551,1764250231598,-3412.29454192,0.0001487,2]
[394979552,1764250231608,-1377.93241419,0.0001487,2]
[394979553,1764250231619,-5517.3265029,0.0001487,2]
[394979554,1764250231657,-360.09815111,0.0001487,2]
[394979555,1764250231666,-151.0,0.00014961,2]
[394979556,1764250231676,-150.0,0.00014968,2]
[394979557,1764250231685,-500.0,0.00014969,2]
[394979558,1764250231695,-500.0,0.00014969,2]
[394979560,1764250231704,-500.0,0.00014969,2]
[394979562,1764250231714,-500.0,0.00014969,2]
[394979564,1764250231724,-500.0,0.00014969,2]
[394979566,1764250231733,-500.0,0.00014969,2]
[394979568,1764250231742,-500.0,0.00014969,2]
[394979570,1764250231752,-500.0,0.00014969,2]
[394979572,1764250231761,-500.0,0.00014969,2]
[394979573,1764250231771,-500.0,0.00014969,2]
[394979574,1764250231780,-500.0,0.00014969,2]
[394979575,1764250231789,-500.0,0.00014969,2]
[394979577,1764250231798,-500.0,0.00014969,2]
[394979578,1764250231807,-500.0,0.00014969,2]
[394979580,1764250231816,-500.0,0.00014969,2]
[394979581,1764250231826,-500.0,0.00014969,2]
[394979582,1764250231835,-500.0,0.00014969,2]
[394979583,1764250231845,-500.0,0.00014969,2]
[394979584,1764250231854,-500.0,0.00014969,2]
[394979585,1764250231864,-300.0,0.00014969,2]
[394979586,1764250231873,-500.0,0.00014969,2]
[394979587,1764250231882,-500.0,0.00014969,2]
[394979588,1764250231891,-500.0,0.00014969,2]
[394979589,1764250231901,-500.0,0.00014969,2]
[394979590,1764250231910,-500.0,0.00014969,2]
[394979591,1764250231919,-500.0,0.00014969,2]
[394979592,1764250231928,-500.0,0.00014969,2]
[394979593,1764250231937,-500.0,0.00014969,2]
[394979594,1764250231946,-500.0,0.00014969,2]
[394979595,1764250231955,-500.0,0.00014969,2]
[394979596,1764250231965,-500.0,0.00014969,2]
[394979597,1764250231975,-500.0,0.00014969,2]
[394979598,1764250231987,-500.0,0.00014969,2]
[394979599,1764250231996,-500.0,0.00014969,2]
[394979600,1764250232005,-500.0,0.00014969,2]
[394979601,1764250232013,-546.37358122,0.00014969,2]
[394979602,1764250232022,-126.59890218,0.00014969,2]
[394979603,1764250232175,-373.40109782,0.00014969,2]
[394979604,1764250232185,-292.46739874,0.00014969,2]
[394979605,1764250232546,-207.53260126,0.00014969,2]
[394979606,1764250232556,-500.0,0.00014969,2]
[394979607,1764250232566,-500.0,0.00014969,2]
[394979608,1764250232576,-191.19155648,0.00014969,2]
[394979609,1764250232589,-308.80844352,0.00014969,2]
[394979610,1764250232599,-180.59188557,0.00014969,2]
[394979611,1764250232611,-319.40811443,0.00014969,2]
[394979612,1764250232620,-500.0,0.00014969,2]
[394979613,1764250232629,-500.0,0.00014969,2]
[394979614,1764250232639,-500.0,0.00014969,2]
[394979615,1764250232649,-500.0,0.00014969,2]
[394979616,1764250232658,-500.0,0.00014969,2]
[394979617,1764250232667,-97.94404881,0.00014969,2]
[394979618,1764250232679,-394.45008645,0.00014969,2]
[394979619,1764250232691,-7.60586474,0.00014969,2]
[394979620,1764250232700,-279.35508785,0.00014969,2]
[394979621,1764250232711,-220.64491215,0.00014969,2]
[394979622,1764250232721,-85.20690727,0.00014969,2]
[394979624,1764250237579,-765.32,0.00014969,2]
[394979625,1764250237589,-260.80217787,0.00014989,2]
[394979626,1764250237598,-500.0,0.00015,2]
[394979627,1764250237607,-500.0,0.00015,2]
[394979628,1764250237616,-2150.5083136,0.0001503,2]
[394979629,1764250237625,-9271.12,0.0001523,2]
[394979630,1764250237634,-765.32,0.00015243,2]
[394979631,1764250237643,-2150.50831355,0.00015349,2]
[394979632,1764250237652,-765.32,0.00015517,2]
[394979633,1764250237662,-1000.0,0.00015548,2]
[394979634,1764250237671,-174.3236108,0.00015548,2]
[394979635,1764250237680,-243.5,0.00015625,2]
[394979636,1764250237689,-9271.12,0.00015653,2]
[394979638,1764250237698,-2150.50831355,0.00015668,2]
[394979640,1764250237706,-765.32,0.00015791,2]
[394979641,1764250237715,-362.52238698,0.000159,2]
[394979642,1764250237724,-362.52238698,0.000159,2]
[394979643,1764250237733,-362.52238698,0.000159,2]
[394979644,1764250237742,-166.91129757,0.00015947,2]
[394979645,1764250237752,-3380.2,0.00015963,2]
[394979647,1764250237761,-2150.50831355,0.00015987,2]
[394979649,1764250237771,-151.0,0.00015997,2]
[394979651,1764250237784,-243.86140156,0.00015999,2]
[394979652,1764250237793,-217.87928141,0.00015999,2]
[394979653,1764250237809,-282.12071859,0.00015999,2]
[394979654,1764250237818,-174.39097659,0.00015999,2]
[394979655,1764250237828,-450.62830482,0.00015999,2]
[394979656,1764250237839,-185.72092865,0.00015999,2]
[394979657,1764250237848,-494.68375629,0.00016,4]
[394979670,1764250239622,-3242.79564248,0.00016,4]
[394979673,1764250239634,-1790.09687237,0.00016,4]
[394979692,1764250239846,-381.07102406,0.00016,4]
[394979713,1764250243271,-836.99523524,0.00015944,2]
[394979730,1764250245720,-66.24976476,0.00015944,2]
[394979731,1764250245730,-744.56023554,0.00016,4]
[394979732,1764250245834,-408.45751055,0.00016,4]
[394979733,1764250245846,-1305.10479596,0.00016,4]
[394979734,1764250245857,-610.6875,0.00016,4]
[394979774,1764250534137,-300.0,0.00014867,2]
[394979775,1764250534167,-300.0,0.00014867,2]
[394979776,1764250534200,-1200.0,0.00014867,2]
[394979777,1764250534232,-500.0,0.00014868,2]
[394979778,1764250534263,-173.57667748,0.00014868,2]
[394979779,1764250534297,-500.0,0.00014868,2]
[394979780,1764250534331,-500.0,0.00014868,2]
[394979781,1764250534362,-534.69466743,0.00014868,2]
[394979782,1764250534394,-500.0,0.00014868,2]
[394979783,1764250534427,-483.46731018,0.00014868,2]
[394979784,1764250534888,-16.53268982,0.00014868,2]
[394979785,1764250534922,-500.0,0.00014868,2]
[394979786,1764250534954,-500.0,0.00014868,2]
[394979787,1764250534986,-500.0,0.00014868,2]
[394979788,1764250535018,-500.0,0.00014868,2]
[394979789,1764250535053,-500.0,0.00014868,2]
[394979790,1764250535085,-500.0,0.00014868,2]
[394979791,1764250535117,-500.0,0.00014868,2]
[394979792,1764250535149,-500.0,0.00014868,2]
[394979793,1764250535181,-500.0,0.00014868,2]
[394979794,1764250535214,-466.94462036,0.00014868,2]
[394979795,1764250536781,-33.05537964,0.00014868,2]
[394979796,1764250536820,-500.0,0.00014868,2]
[394979797,1764250536859,-500.0,0.00014868,2]
[394979798,1764250536894,-210.72769349,0.00014868,2]
[394979799,1764250536928,-500.0,0.00014868,2]
[394979800,1764250536956,-195.96729119,0.00014868,2]
[394979801,1764250537002,-500.0,0.00014868,2]
[394979802,1764250537042,-500.0,0.00014868,2]
[394979803,1764250537079,-500.0,0.00014868,2]
[394979804,1764250537113,-500.0,0.00014868,2]
[394979805,1764250537149,-500.0,0.00014868,2]
[394979806,1764250537184,-500.0,0.00014868,2]
[394979807,1764250539803,-500.0,0.00014868,2]
[394979808,1764250539843,-500.0,0.00014868,2]
[394979809,1764250539881,-500.0,0.00014868,2]
[394979810,1764250539915,-500.0,0.00014868,2]
[394979811,1764250539948,-500.0,0.00014868,2]
[394979812,1764250539980,-500.0,0.00014868,2]
[394979813,1764250540013,-500.0,0.00014868,2]
[394979814,1764250540045,-500.0,0.00014868,2]
[394979815,1764250540077,-496.75792497,0.00014868,2]
[394979816,1764250540113,-500.0,0.00014868,2]
[394979817,1764250542957,-500.0,0.00014868,2]
[394979818,1764250542991,-500.0,0.00014868,2]
[394979819,1764250543026,-500.0,0.00014868,2]
[394979820,1764250543061,-500.0,0.00014868,2]
[394979821,1764250543097,-500.0,0.00014868,2]
[394979822,1764250543132,-500.0,0.00014868,2]
[394979823,1764250543165,-500.0,0.00014868,2]
[394979824,1764250543199,-500.0,0.00014868,2]
[394979825,1764250543234,-500.0,0.00014868,2]
[394979826,1764250543271,-500.0,0.00014868,2]
[394979827,1764250543478,-500.0,0.00014868,2]
[394979828,1764250543516,-500.0,0.00014868,2]
[394979829,1764250543553,-500.0,0.00014868,2]
[394979830,1764250543585,-500.0,0.00014868,2]
[394979831,1764250543617,-500.0,0.00014868,2]
[394979832,1764250543648,-500.0,0.00014868,2]
[394979833,1764250543682,-500.0,0.00014868,2]
[394979834,1764250543715,-500.0,0.00014868,2]
[394979835,1764250543748,-500.0,0.00014868,2]
[394979836,1764250543781,-200.0,0.00014868,2]
[394979837,1764250543813,-100.01,0.00014868,2]
[394979847,1764250771167,160.0,0.000147,2]
[394979848,1764250776826,160.0,0.000147,2]
[394979849,1764250790910,160.0,0.000147,2]
[394979851,1764250839341,-1778.93568054,0.00014769,2]
[394979852,1764250839374,-1778.93568053,0.00014769,2]
[394979863,1764250968892,166.66,0.00013998,2]
[394979864,1764250969109,166.66,0.00014293,2]
[394979865,1764250969323,166.66,0.00014587,2]
[394979866,1764250991527,2384.28727786,0.00014555,2]
[394979867,1764250991551,10000.01,0.00014555,2]
[394979868,1764250991575,10000.01,0.00014555,2]
[394979869,1764250991602,10000.01,0.00014555,2]
[394979870,1764250991625,10000.01,0.00014555,2]
[394979871,1764250991650,10000.01,0.00014555,2]
[394979872,1764250991674,6362.88272214,0.00014555,2]
[394979883,1764251058244,1600.0,0.00014539,2]
[394979884,1764251060292,171.84782484,0.00014555,2]
[394979886,1764251060377,250.67117171,0.00014555,2]
[394979888,1764251060752,1614.60828131,0.00014555,2]
[394979889,1764251060775,696.88091499,0.00014555,2]
[394979894,1764251067861,658.15217516,0.00014555,2]
[394979906,1764251088058,626.11966787,0.00014768,2]
[394979914,1764251095940,155.82,0.00014412,2]
[394979915,1764251099680,200.4318045,0.0001434,2]
[394979923,1764251121914,200.0,0.00014444,2]
[394979935,1764251133146,2000.0,0.00014453,2]
[394979947,1764251150597,-210.0,0.00014769,2]
[394979977,1764251198068,150.0,0.00014769,2]
[394979998,1764251222597,280.1,0.00014467,2]
[394980003,1764251229017,5597.85,0.0001443,2]
[394980025,1764251302515,3552.06,0.00014412,2]
[394980026,1764251302547,3802.92,0.00014412,2]
[394980028,1764251311808,200.0,0.0001434,2]
[394980039,1764251378671,5997.09,0.00014768,2]
[394980040,1764251378702,10000.01,0.00014768,2]
[394980041,1764251378728,10000.01,0.00014768,2]
[394980042,1764251378755,9268.2563,0.00014768,2]
[394980043,1764251399613,731.7537,0.00014769,2]
[394980044,1764251399636,705.0722,0.00014769,2]
[394980045,1764251406088,9294.9378,0.00014769,2]
[394980046,1764251406113,8637.2391,0.00014769,2]
[394980061,1764251431950,-277.47,0.00014782,2]
[394980071,1764251437583,-340.00534089,0.00014782,2]
[394980087,1764251439767,-1882.52465911,0.00014782,2]
[394980088,1764251439778,-1861.66183175,0.00014782,2]
[394980089,1764251439787,-195.0,0.00014818,2]
[394980090,1764251439797,-300.0,0.00014852,2]
[394980091,1764251439810,-1200.0,0.00014852,2]
[394980092,1764251439819,-1617.95045639,0.00014852,2]
[394980093,1764251439831,-1200.0,0.00014853,2]
[394980094,1764251439840,-27701.7231451,0.00014854,2]
[394980095,1764251439849,-151.0,0.0001486,2]
[394980096,1764251439859,-206.71851289,0.0001486,2]
[394980097,1764251439868,-500.0,0.0001486,2]
[394980098,1764251439878,-205.57943248,0.0001486,2]
[394980099,1764251439887,-150.0,0.00014867,2]
[394980100,1764251439896,-501.89270124,0.00014867,2]
[394980101,1764251439905,-500.0,0.00014867,2]
[394980102,1764251439915,-500.0,0.00014867,2]
[394980103,1764251439924,-500.0,0.00014867,2]
[394980104,1764251439933,-319.35343589,0.00014867,2]
[394980105,1764251439943,-500.0,0.00014867,2]
[394980106,1764251439953,-500.0,0.00014867,2]
[394980107,1764251439962,-500.0,0.00014867,2]
[394980108,1764251439971,-405.97108758,0.00014867,2]
[394980109,1764251439981,-500.0,0.00014867,2]
[394980110,1764251439989,-500.0,0.00014867,2]
[394980111,1764251439999,-500.0,0.00014867,2]
[394980112,1764251440007,-389.80148201,0.00014867,2]
[394980113,1764251440016,-500.0,0.00014867,2]
[394980114,1764251440025,-500.0,0.00014867,2]
[394980115,1764251440034,-500.0,0.00014867,2]
[394980116,1764251440044,-500.0,0.00014867,2]
[394980117,1764251440053,-500.0,0.00014867,2]
[394980118,1764251440062,-404.05674463,0.00014867,2]
[394980119,1764251440071,-500.0,0.00014868,2]
[394980120,1764251440081,-500.0,0.00014868,2]
[394980121,1764251440090,-500.0,0.00014868,2]
[394980122,1764251440100,-500.0,0.00014868,2]
[394980124,1764251440110,-500.0,0.00014868,2]
[394980125,1764251440120,-500.0,0.00014868,2]
[394980127,1764251440129,-500.0,0.00014868,2]
[394980128,1764251440139,-500.0,0.00014868,2]
[394980129,1764251440148,-500.0,0.00014868,2]
[394980130,1764251440158,-500.0,0.00014868,2]
[394980131,1764251440167,-500.0,0.00014868,2]
[394980132,1764251440176,-500.0,0.00014868,2]
[394980133,1764251440186,-500.0,0.00014868,2]
[394980134,1764251440195,-500.0,0.00014868,2]
[394980135,1764251440204,-500.0,0.00014868,2]
[394980136,1764251440214,-500.0,0.00014868,2]
[394980137,1764251440223,-500.0,0.00014868,2]
[394980138,1764251440232,-500.0,0.00014868,2]
[394980139,1764251440241,-500.0,0.00014868,2]
[394980140,1764251440250,-500.0,0.00014868,2]
[394980141,1764251440260,-500.0,0.00014868,2]
[394980142,1764251440268,-500.0,0.00014868,2]
[394980143,1764251440279,-500.0,0.00014868,2]
[394980144,1764251440288,-500.0,0.00014868,2]
[394980145,1764251440298,-500.0,0.00014868,2]
[394980146,1764251440307,-500.0,0.00014868,2]
[394980147,1764251440317,-500.0,0.00014868,2]
[394980148,1764251440326,-500.0,0.00014868,2]
[394980149,1764251440335,-500.0,0.00014868,2]
[394980150,1764251440344,-500.0,0.00014868,2]
[394980151,1764251440353,-160.67475089,0.00014868,2]
[394980152,1764251440362,-500.0,0.00014868,2]
[394980153,1764251440371,-500.0,0.00014868,2]
[394980154,1764251440380,-500.0,0.00014868,2]
[394980155,1764251440389,-500.0,0.00014868,2]
[394980156,1764251440398,-500.0,0.00014868,2]
[394980157,1764251440407,-500.0,0.00014868,2]
[394980158,1764251440416,-500.0,0.00014868,2]
[394980159,1764251440425,-500.0,0.00014868,2]
[394980160,1764251440434,-279.61056624,0.00014868,2]
[394980161,1764251440443,-500.0,0.00014868,2]
[394980162,1764251440452,-500.0,0.00014868,2]
[394980163,1764251440461,-500.0,0.00014868,2]
[394980164,1764251440470,-500.0,0.00014868,2]
[394980165,1764251440479,-500.0,0.00014868,2]
[394980166,1764251440489,-432.701,0.00014868,2]
[394980167,1764251440498,-408.11,0.00014868,2]
[394980168,1764251440507,-500.0,0.00014868,2]
[394980169,1764251440516,-500.0,0.00014868,2]
[394980170,1764251440525,-500.0,0.00014868,2]
[394980171,1764251440534,-500.0,0.00014868,2]
[394980172,1764251440543,-500.0,0.00014868,2]
[394980173,1764251440552,-500.0,0.00014868,2]
[394980174,1764251440561,-500.0,0.00014868,2]
[394980175,1764251440744,-500.0,0.00014868,2]
[394980176,1764251440754,-500.0,0.00014868,2]
[394980177,1764251440764,-585.82144852,0.00014868,2]
[394980178,1764251440774,-230.5943934,0.00014868,2]
[394980179,1764251440783,-10669.035883,0.00014868,2]
[394980180,1764251440792,-510.21,0.00014868,2]
[394980181,1764251440801,-500.0,0.00014873,2]
[394980182,1764251440811,-166.66,0.00014882,2]
[394980183,1764251440820,-2250.17,0.00014882,2]
[394980184,1764251440829,-19999.99,0.00014882,2]
[394980185,1764251440838,-500.0,0.000149,2]
[394980186,1764251440847,-8174.5,0.00014919,2]
[394980187,1764251440856,-1500.0,0.00015037,2]
[394980188,1764251440866,-500.0,0.000151,2]
[394980189,1764251440875,-3177.01,0.0001512,2]
[394980190,1764251440884,-1861.66183171,0.00015128,2]
[394980191,1764251440893,-510.21,0.00015142,2]
[394980192,1764251440902,-166.66,0.00015177,2]
[394980193,1764251440911,-484.36,0.00015196,2]
[394980194,1764251440921,-1602.24,0.00015238,2]
[394980195,1764251440930,-19862.13,0.00015239,2]
[394980196,1764251440939,-540.02,0.000153,2]
[394980197,1764251440948,-151.0,0.00015408,2]
[394980198,1764251440957,-510.21,0.00015416,2]
[394980199,1764251440966,-1008.28181366,0.00015421,2]
[394980200,1764251440975,-554.13107548,0.00015448,2]
[394980201,1764251440984,-166.66,0.00015471,2]
[394980202,1764251440993,-1861.66183171,0.00015475,2]
[394980203,1764251441002,-293.5275764,0.00015572,2]
[394980204,1764251441012,-5767.4263201,0.00015572,2]
[394980205,1764251441021,-175.3689584,0.00015572,2]
[394980206,1764251441031,-1000.0,0.00015648,2]
[394980208,1764251441040,-510.21,0.0001569,2]
[394980210,1764251441050,-270.47,0.00015782,2]
[394980211,1764251441059,-578.20924308,0.00015787,2]
[394980212,1764251441068,-1400.0,0.00015787,2]
[394980213,1764251441078,-354.0,0.00015787,2]
[394980214,1764251441087,-500.0,0.00015787,2]
[394980215,1764251441097,-500.0,0.00015787,2]
[394980216,1764251441106,-500.0,0.00015787,2]
[394980217,1764251441116,-500.0,0.00015787,2]
[394980218,1764251441125,-500.0,0.00015787,2]
[394980219,1764251441135,-500.0,0.00015787,2]
[394980220,1764251441147,-500.0,0.00015787,2]
[394980221,1764251441157,-312.13280459,0.00015787,2]
[394980222,1764251441167,-500.0,0.00015787,2]
[394980223,1764251441177,-500.0,0.00015787,2]
[394980224,1764251441186,-500.0,0.00015787,2]
[394980225,1764251441196,-500.0,0.00015787,2]
[394980226,1764251441206,-500.0,0.00015787,2]
[394980227,1764251441216,-500.0,0.00015787,2]
[394980228,1764251441226,-500.0,0.00015787,2]
[394980229,1764251441235,-500.0,0.00015787,2]
[394980230,1764251441244,-500.0,0.00015787,2]
[394980231,1764251441253,-500.0,0.00015787,2]
[394980232,1764251441262,-500.0,0.00015787,2]
[394980233,1764251441271,-1861.66183171,0.00015821,2]
[394980234,1764251441282,-356.7628,0.000159,2]
[394980235,1764251441290,-1818.2272,0.000159,2]
[394980236,1764251441300,-160.0,0.000159,2]
[394980237,1764251441309,-160.0,0.000159,2]
[394980238,1764251441318,-338.49256399,0.000159,2]
[394980239,1764251441327,-338.49256399,0.000159,2]
[394980240,1764251441336,-338.49256399,0.000159,2]
[394980241,1764251441345,-160.0,0.000159,2]
[394980242,1764251441355,-168.16340987,0.00015947,2]
[394980243,1764251441364,-510.21,0.00015964,2]
[394980244,1764251441373,-255.0,0.00015997,2]
[394980245,1764251441382,-500.0,0.00015999,2]
[394980246,1764251441391,-227.12527045,0.00015999,2]
[394980247,1764251441401,-246.25048286,0.00015999,2]
[394980248,1764251441410,-500.0,0.00015999,2]
[394980249,1764251441419,-388.06811479,0.00015999,2]
[394980250,1764251441429,-218202.64706967,0.00016,4]
[394980251,1764251441438,-610.0,0.00016047,2]
[394980252,1764251441447,-1602.0,0.00016047,2]
[394980253,1764251441456,-823.0,0.00016047,2]
[394980254,1764251441465,-1257.0,0.00016047,2]
[394980255,1764251441474,-660.0,0.00016047,2]
[394980256,1764251441484,-6503.0,0.00016047,2]
[394980257,1764251441493,-562.0,0.00016047,2]
[394980258,1764251441503,-9271.12,0.00016076,2]
[394980259,1764251441512,-455.55265,0.0001616,2]
[394980260,1764251441521,-1861.66183171,0.00016168,2]
[394980261,1764251441532,-455.55265,0.0001617,2]
[394980262,1764251441541,-455.55265,0.0001617,2]
[394980263,1764251441551,-455.55265,0.0001617,2]
[394980264,1764251441561,-455.55265,0.0001619,2]
[394980265,1764251441570,-1500.0,0.00016196,2]
[394980266,1764251441580,-500.0,0.00016199,2]
[394980267,1764251441588,-500.0,0.00016199,2]
[394980268,1764251441598,-500.0,0.00016199,2]
[394980269,1764251441607,-150.0,0.000162,2]
[394980270,1764251441616,-150.0,0.000162,2]
[394980271,1764251441625,-150.0,0.000162,2]
[394980272,1764251441635,-150.0,0.000162,2]
[394980273,1764251441644,-150.0,0.000162,2]
[394980274,1764251441655,-159.00370409,0.000162,2]
[394980275,1764251441665,-253.0677733,0.000162,2]
[394980276,1764251441675,-17047.1272753,0.000162,5]
[394980277,1764251441684,-455.55266,0.000162,2]
[394980278,1764251441693,-1852.42,0.00016204,2]
[394980279,1764251441704,-250.0,0.00016232,2]
[394980280,1764251441713,-510.25239375,0.00016238,2]
[394980281,1764251441727,-308.8231561,0.00016246,2]
[394980282,1764251441736,-420.0,0.00016257,2]
[394980283,1764251441746,-1680.0,0.00016258,2]
[394980284,1764251441755,-250.0,0.0001626,2]
[394980285,1764251441767,-374.44429683,0.0001626,2]
[394980286,1764251441776,-195.0,0.0001626,2]
[394980287,1764251441786,-195.0,0.0001626,2]
[394980288,1764251441797,-1400.0,0.00016335,2]
[394980289,1764251441806,-585.83120671,0.00016337,2]
[394980290,1764251441957,-1094.16879329,0.00016337,2]
[394980291,1764251441967,-1600.0,0.00016357,2]
[394980292,1764251441976,-230.5943934,0.00016374,2]
[394980293,1764251441985,-170.0,0.000164,2]
[394980294,1764251441994,-6335.9,0.00016438,2]
[394980295,1764251442003,-10669.035883,0.00016445,2]
[394980296,1764251442012,-150.0,0.000165,2]
[394980297,1764251442021,-1861.66183171,0.00016514,2]
[394980298,1764251442030,-168.16340986,0.00016598,2]
[394980299,1764251442039,-1058.586,0.00016609,2]
[394980300,1764251442048,-156.943,0.00016609,2]
[394980301,1764251442057,-168.0,0.00016636,2]
[394980302,1764251442067,-150.0,0.0001665,2]
[394980303,1764251442075,-150.0,0.0001665,2]
[394980304,1764251442085,-200.0,0.00016707,2]
[394980305,1764251442094,-7181.62,0.00016707,2]
[394980306,1764251442103,-8782.7,0.00016707,2]
[394980307,1764251442113,-1067.34012303,0.00016744,2]
[394980308,1764251442122,-150.0,0.000168,2]
[394980309,1764251442132,-150.0,0.000168,2]
[394980310,1764251442140,-4497.90074901,0.00016803,2]
[394980311,1764251442171,-423.00000003,0.00016803,2]
[394980331,1764251443462,-627.75605708,0.00015947,2]
[394980332,1764251444297,-8993.97356707,0.00015947,2]
[394980333,1764251444308,-9238.2714582,0.00015947,2]
[394980334,1764251444318,-250.0,0.00016047,2]
[394980335,1764251444327,-1260.18917266,0.00016803,2]
[394980336,1764251444336,-1861.66183171,0.00016861,2]
[394980337,1764251444345,-1400.0,0.00016883,2]
[394980338,1764251444355,-2647.7093,0.000169,2]
[394980339,1764251444364,-168.75138972,0.000169,2]
[394980340,1764251444374,-173.66389438,0.000169,2]
[394980341,1764251444383,-231.28061922,0.000169,2]
[394980342,1764251444392,-40.60382026,0.00016924,2]
[394980346,1764251528252,500.0,0.00022,30]
[394982425,1764251549752,10000.01,0.00014768,2]
[394982429,1764251549782,10000.01,0.00014768,2]
[394983302,1764251570695,527.74,0.00013699,2]
[394983358,1764251649141,388.78912287,0.00014669,2]
[394983396,1764251741728,187.45353052,0.00014667,2]
[394983397,1764251744088,-156.07,0.000177,7]
[394983399,1764251823427,10000.01,0.000146,2]
[394983400,1764251823452,4777.59,0.000146,2]
[394983401,1764251827350,5222.42,0.00014669,2]
[394983402,1764251827377,10000.01,0.00014669,2]
[394983403,1764251827402,2972.77434542,0.00014669,2]
[394983404,1764251834170,165.67391545,0.00014669,2]
[394983407,1764251837059,856.13,0.00013699,2]
[394983409,1764251840290,340.19048252,0.00014669,2]
[394983410,1764251915387,5665.24125661,0.00014668,2]
[394983411,1764251915420,10000.01,0.00014668,2]
[394983412,1764251915449,10000.01,0.00014668,2]
[394983413,1764251915478,8347.96094339,0.00014668,2]
[394983414,1764251921622,1652.04905661,0.00014668,2]
[394983415,1764251921647,847.95094339,0.00014668,2]
[394983417,1764251983483,235.1888,0.00014668,2]
[394983418,1764252031368,297.66667224,0.00014669,2]
[394983421,1764252076171,1458.07839978,0.00014669,2]
[394983423,1764252084293,7161.12518459,0.00014668,2]
[394983424,1764252084319,10000.01,0.00014668,2]
[394983425,1764252084343,10000.01,0.00014668,2]
[394983426,1764252084367,8125.01361541,0.00014668,2]
[394983427,1764252090296,2500.0,0.00014668,2]
[394983429,1764252129534,165.67391545,0.00014669,2]
[394983430,1764252176732,5699.6598,0.00014668,2]
[394983433,1764252199681,221.49377174,0.00014669,2]
[394983434,1764252213792,1413.18251281,0.00014669,2]
[394983435,1764252213819,10000.01,0.00014669,2]
[394983436,1764252213849,6410.82690758,0.00014669,2]
[394983437,1764252222334,280.33892319,0.00014669,2]
[394983438,1764252310875,3308.84416923,0.000147,2]
[394983439,1764252310898,10000.01,0.000147,2]
[394983440,1764252310922,10000.01,0.000147,2]
[394983441,1764252310945,10000.01,0.000147,2]
[394983442,1764252310970,10000.01,0.000147,2]
[394983443,1764252310994,10000.01,0.000147,2]
[394983444,1764252311017,10000.01,0.000147,2]
[394983445,1764252311040,10000.01,0.000147,2]
[394983446,1764252311062,10000.01,0.000147,2]
[394983447,1764252311085,10000.01,0.000147,2]
[394983448,1764252311111,161298.98964412,0.000147,2]
[394983450,1764252346779,10000.01,0.00014668,2]
[394983451,1764252346805,10000.01,0.00014668,2]
[394983452,1764252346831,10000.01,0.00014668,2]
[394983453,1764252346857,3384.8913,0.00014668,2]
[394983454,1764252352684,280.7424,0.00014668,2]
[394983455,1764252360440,1504.59,0.00014702,2]
[394983456,1764252364944,1000.0,0.00014668,2]
[394983457,1764252366848,847.79,0.00013699,2]
[394983458,1764252398497,528.93568053,0.00014667,2]
[394983460,1764252413309,285.05772786,0.00014669,2]
[394983461,1764252414922,166.74338105,0.00014669,2]